Cogmind - Beta 14 @@@ ROGUE MODE // 2025.04.24 @ 11:26:56 Player: Glyb Result: Destroyed by G-47 Trooper with Particle Gun Performance ------------- Evolutions (3) 1500 Regions Visited (7) 1400 Robots Destroyed (10) 50 Value Destroyed (145) 145 Prototype IDs (26) 520 Alien Tech Used (0) 0 Bonus (474) 474 TOTAL SCORE: 4089 Bonus ------- Follower Combat Kills 7 Entered Garrisons 200 Aligned with FarCom 300 Friendly Fire -33 Cogmind --------- Core Integrity 0/700 Matter 300/300 Energy 100/100 System Corruption 2% Temperature Cool (27) Movement Core (100) Ox1 Location -7/Garrison Parts ------- > --- POWER (2) -------- (None) > --- PROPULSION (5) --- (None) > --- UTILITY (4) ------ Improved Melee Analysis Suite > --- WEAPON (2) ------- Katana Katana > --- INVENTORY (5) ---- Kinecellerator Mini Assault Cannon Mini Assault Cannon Peak State ------------ > --- POWER ------------ Light Ion Engine > --- PROPULSION ------- Cooled VTOL Module > --- UTILITY ---------- Melee Analysis Suite Improved Melee Analysis Suite Trap Reconfigurator > --- WEAPON ----------- Mini Assault Cannon Mini Assault Cannon > --- INVENTORY -------- Armored Wheel Kinecellerator Katana Katana [Rating: 33] Favorites ----------- Power Light Ion Engine Engine Light Ion Engine Propulsion Flight Unit Wheel Armored Wheel Hover Unit Improved Hover Unit Flight Unit Flight Unit Utility Trap Reconfigurator Device Trap Reconfigurator Storage Small Storage Unit Processor Improved Melee Analysis Suite Weapon Mini Assault Cannon Energy Gun Medium Laser Ballistic Gun Light Assault Rifle Ballistic Cannon Mini Assault Cannon Slashing Weapon Katana Build | -11 -10 -10 -10 -9 -8 -7 -7 ------- Run | Yrd Mat Min Exi Min Mat Fac Gar Slots Evolved 6 | . . . . . 4 2 . Power 1 | . . . . . . 1 . Propulsion 3 | . . . . . 2 1 . Utility 2 | . . . . . 2 . . Weapon . | . . . . . . . . Parts Attached 35 | 6 3 2 1 2 10 9 2 Power 7 | 1 1 . . 1 3 1 . Engine 7 | 1 1 . . 1 3 1 . Core . | . . . . . . . . Reactor . | . . . . . . . . Propulsion 11 | 2 1 1 . 1 2 4 . Treads . | . . . . . . . . Leg . | . . . . . . . . Wheel 4 | 2 . . . . . 2 . Hover 1 | . . . . . . 1 . Flight 6 | . 1 1 . 1 2 1 . Utility 4 | 1 . . 1 . . 2 . Device 1 | . . . 1 . . . . Storage 1 | 1 . . . . . . . Processor 2 | . . . . . . 2 . Hackware . | . . . . . . . . Protection . | . . . . . . . . Artifact . | . . . . . . . . Weapon 13 | 2 1 1 . . 5 2 2 Energy Gun 1 | 1 . . . . . . . Energy Cannon . | . . . . . . . . Ballistic Gun 5 | 1 1 1 . . 2 . . Ballistic Cannon 4 | . . . . . 2 2 . Launcher . | . . . . . . . . Special Weapon . | . . . . . . . . Impact Weapon . | . . . . . . . . Slashing Weapon 3 | . . . . . 1 . 2 Piercing Weapon . | . . . . . . . . Special Melee Weapon . | . . . . . . . . Unidentified Prototypes 3 | . . . . . 2 1 . Parts Lost 12 | . . . . 2 4 2 4 Power 2 | . . . . . 1 . 1 Propulsion 7 | . . . . 1 3 2 1 Utility 2 | . . . . . . . 2 Weapon 1 | . . . . 1 . . . Highest Loss Streak 4 | . . . . 1 3 2 4 To Critical Strikes . | . . . . . . . . Average Slot Usage (%) 49 | . 71 56 78 78 38 41 25 Engine 5 | . 14 14 14 14 2 2 1 Wheel 3 | . 18 . . . . 2 3 Flight 10 | . 4 21 28 28 16 3 . Device 6 | . . . 7 14 9 7 1 Storage 1 | . 9 . . . . . . Processor 5 | . . . . . . 13 9 Ballistic Gun 7 | . 18 21 28 21 1 . . Ballistic Cannon 4 | . . . . . 9 5 7 Slashing Weapon 1 | . . . . . . 4 1 Peak Build Rating 33 | 6 6 5 14 14 26 33 30 Average Rating 16 | 4 5 3 9 13 17 23 14 On Entrance 10 | . 6 3 5 14 13 14 30 Naked Turns . | . . . . . . . . Heaviest Build 14 | 14 14 5 6 6 12 12 12 Greatest Support 26 | 26 26 8 8 8 12 12 12 Greatest Overweight (x) 2 | . . . . . 2 . 2 Average Overweight (x) . | . . . . . . . . Largest Inventory Capacity 8 | 8 8 5 5 5 5 5 5 Average Capacity 5 | 7 7 5 5 5 5 5 5 Most Carried 7 | 3 7 5 5 5 5 5 5 Average Carried 4 | 1 4 4 5 4 4 4 3 Final Capacity 8 | 8 5 5 5 5 5 5 5 Final Carried 5 | 3 5 5 5 5 5 3 3 Class Distribution -------------------- 82% | Mutant 17% | Scavenger-Mutant Dominant Class ---------------- Mutant | -10/Materials Mutant | -10/Mines Scavenger-Mutant | -10/Exiles Scavenger-Mutant | -9/Mines Mutant | -8/Materials Mutant | -7/Factory Mutant | -7/Garrison Resources | -11 -10 -10 -10 -9 -8 -7 -7 ----------- Run | Yrd Mat Min Exi Min Mat Fac Gar Matter Collected 690 | 165 50 43 . 111 133 25 163 Remotely . | . . . . . . . . Salvage Created 171 | . 50 43 . . 53 25 . Parts 18 | . 3 7 . . 4 4 . Haulers Intercepted . | . . . . . . . . Recyclers Shooed . | . . . . . . . . Parts Field Recycled . | . . . . . . . . Retrieved Matter . | . . . . . . . . Parts Self-Destructed . | . . . . . . . . Prevented . | . . . . . . . . Kills | -11 -10 -10 -10 -9 -8 -7 -7 ------- Run | Yrd Mat Min Exi Min Mat Fac Gar Combat Hostiles Destroyed 9 | . 3 3 . . 3 . . Guns 6 | . 3 3 . . . . . Cannons 3 | . . . . . 3 . . Classes Destroyed 2 | . 1 . . . . 1 . Watcher 1 | . . . . . . 1 . Swarmer 9 | . 3 3 . . 3 . . Best Kill Streak 3 | . 3 3 . . 3 1 . Combat Bots Only 3 | . 3 3 . . 3 . . Max Kills in Single Turn 1 | . 1 1 . . 1 1 . Gunslinging . | . . . . . . . . Exploded . | . . . . . . . . Melee . | . . . . . . . . Uniques/NPCs Destroyed . | . . . . . . . . Combat | -11 -10 -10 -10 -9 -8 -7 -7 -------- Run | Yrd Mat Min Exi Min Mat Fac Gar Hostile Shots Fired 271 | . 31 13 . 16 70 36 105 Missed 115 | . 13 4 . 2 32 17 47 Damage Taken 1907 | . 147 78 . 240 374 253 815 Core 1089 | . 17 43 . 118 211 138 562 Absorbed by Shields 62 | . . . . . . . 62 Core Remaining (%) 63 | 100 . . . 28 61 . . Volleys Fired 33 | . 10 9 . . 11 3 . Largest 2 | . 2 1 . . 2 2 . Hottest 96 | . 70 20 . . 96 96 . Shots Fired 57 | . 20 9 . . 22 6 . Gun 29 | . 20 9 . . . . . Cannon 28 | . . . . . 22 6 . Launcher . | . . . . . . . . Special . | . . . . . . . . Kinetic 47 | . 10 9 . . 22 6 . Thermal 10 | . 10 . . . . . . Explosive . | . . . . . . . . Electromagnetic . | . . . . . . . . Robot Hit Streak 6 | . 3 6 . . 2 1 . Robot Miss Streak 9 | . 2 3 . . 9 2 . Penetration Max . | . . . . . . . . Secondary Targets 1 | . 1 . . . . . . Max Gunslinging Chain 1 | . 1 . . . . . . Shots Hit Robots 34 | . 12 6 . . 5 6 5 Core Hits 16 | . 4 4 . . 4 4 . Critical Kills . | . . . . . . . . Critical Parts Destroyed . | . . . . . . . . Critical Strikes 1 | . . . . . 1 . . Blast 1 | . . . . . 1 . . Melee Attacks 11 | . . . . . . 5 6 Impact . | . . . . . . . . Slashing 11 | . . . . . . 5 6 Piercing . | . . . . . . . . Sneak Attacks 1 | . . . . . . 1 . Combat Hostiles . | . . . . . . . . Follow-up Attacks . | . . . . . . . . Damage Inflicted 902 | . 166 49 . . 275 250 162 Guns 215 | . 166 49 . . . . . Cannons 336 | . . . . . 275 61 . Explosions 14 | . . . . . . 14 . Melee 332 | . . . . . . 170 162 Ramming 5 | . . . . . . 5 . Kinetic 489 | . 104 49 . . 275 61 . Thermal 62 | . 62 . . . . . . Explosive . | . . . . . . . . Electromagnetic 14 | . . . . . . 14 . Impact . | . . . . . . . . Slashing 332 | . . . . . . 170 162 Piercing . | . . . . . . . . Highest Corruption 4 | . . . . 4 . 2 2 Average Corruption 2 | . . . . 4 . 2 2 Corruption Purged . | . . . . . . . . Corruption Blocked . | . . . . . . . . Effects 6 | . . . . 1 . 4 1 Message Errors 3 | . . . . . . 2 1 Heat Flow Errors 1 | . . . . . . 1 . Alerts 2 | . . . . 1 . 1 . Overload Shots . | . . . . . . . . Overflow Damage 17 | . . . . . 3 14 . Projectiles 3 | . . . . . 3 . . Explosions . | . . . . . . . . Melee 14 | . . . . . . 14 . Knockbacks 5 | . . . . . 4 1 . Impact . | . . . . . . . . Kinetic 5 | . . . . . 4 1 . Secondary . | . . . . . . . . Self-Inflicted Damage 35 | . . . . . . 35 . Shots 2 | . . . . . . 2 . Rammed 2 | . . . . . . 2 . Targets Rammed 2 | . . . . . . 2 . Kicked . | . . . . . . . . Crushed . | . . . . . . . . Highest Temperature 169 | . 81 2 . . 159 169 . Average Temperature 61 | . 37 1 . . 103 47 . Received Heat Transfer 396 | . 6 . . . 54 93 243 Siege Activations . | . . . . . . . . Robots Corrupted . | . . . . . . . . Combat Hostiles . | . . . . . . . . Parts Fried . | . . . . . . . . Impact Corruptions . | . . . . . . . . Robots Melted . | . . . . . . . . Combat Hostiles . | . . . . . . . . Parts Melted . | . . . . . . . . Heat Transferred 185 | . 185 . . . . . . Parts Sabotaged . | . . . . . . . . Parts Stolen . | . . . . . . . . Parts Stripped . | . . . . . . . . Power Chain Reactions . | . . . . . . . . Alert | -11 -10 -10 -10 -9 -8 -7 -7 ------- Run | Yrd Mat Min Exi Min Mat Fac Gar Peak Influence 209 | . 85 103 . 25 192 209 200 Initial 86 | . . 33 . . 9 86 9 Average 77 | . 65 76 . 9 78 106 72 Maximum Alert Level 1 | . . . . . . 1 1 Low Security (%) 96 | 100 100 100 . 100 100 95 78 Level 1 3 | . . . . . . 4 21 Level 2 . | . . . . . . . . Level 3 . | . . . . . . . . Level 4 . | . . . . . . . . Level 5 . | . . . . . . . . High Security . | . . . . . . . . Max Security . | . . . . . . . . Squads Dispatched 3 | . 1 . . . . 2 . Investigation 1 | . . . . . . 1 . Extermination 1 | . . . . . . 1 . Reinforcement 1 | . 1 . . . . . . Assault . | . . . . . . . . Garrison . | . . . . . . . . Intercept . | . . . . . . . . Searches Triggered . | . . . . . . . . Construction Impeded . | . . . . . . . . Haulers Reinforced . | . . . . . . . . Active Scanning Responses . | . . . . . . . . Cargo Convoy Interrupts . | . . . . . . . . Stealth | -11 -10 -10 -10 -9 -8 -7 -7 --------- Run | Yrd Mat Min Exi Min Mat Fac Gar Distress Signals 1 | . . . . . 1 . . Communications Jammed . | . . . . . . . . Distress Signals . | . . . . . . . . Times Spotted 66 | . 13 3 . 16 11 8 15 Peak Tracking Total 13 | . 7 3 . 13 5 5 11 Tactical Retreats 10 | . . . . 3 2 3 2 Traps | -11 -10 -10 -10 -9 -8 -7 -7 ------- Run | Yrd Mat Min Exi Min Mat Fac Gar Traps Triggered 2 | . . . . . . . 2 Indirectly . | . . . . . . . . Trap Hack Attempts . | . . . . . . . . Triggered . | . . . . . . . . Disarmed . | . . . . . . . . Reprogrammed . | . . . . . . . . Reused 1 | . . . . . . . 1 Traps Reconfigurated 6 | . . . . . . 4 2 Traps Extracted . | . . . . . . . . Installed . | . . . . . . . . Triggered 1 | . . . . . . . 1 Machines | -11 -10 -10 -10 -9 -8 -7 -7 ---------- Run | Yrd Mat Min Exi Min Mat Fac Gar Machines Disabled 3 | . . . . . 1 2 . Max in Single Turn 2 | . . . . . 1 2 . Machines Repaired . | . . . . . . . . Machines Dismantled . | . . . . . . . . Machines Sabotaged . | . . . . . . . . Overloaded Fab Kills . | . . . . . . . . Hacking | -11 -10 -10 -10 -9 -8 -7 -7 --------- Run | Yrd Mat Min Exi Min Mat Fac Gar Machines Accessed 9 | . 1 . 1 . 3 3 1 Terminals 4 | . 1 . . . 2 . 1 Fabricators . | . . . . . . . . Repair Stations 1 | . . . . . 1 . . Recycling Units 1 | . . . . . . 1 . Scanalyzers . | . . . . . . . . Garrison Access 2 | . . . . . . 2 . Total Hacks 20 | . 5 . 1 . 5 7 2 Successful 8 | . 2 . 1 . 3 2 . Failed 12 | . 3 . . . 2 5 2 Catastrophic 2 | . . . . . 1 . 1 Database Lockouts . | . . . . . . . . Manual 12 | . 5 . 1 . 6 . . Terminals 11 | . 5 . . . 4 . 2 Fabricators . | . . . . . . . . Repair Stations 1 | . . . . . 1 . . Recycling Units 1 | . . . . . . 1 . Scanalyzers . | . . . . . . . . Garrison Access 6 | . . . . . . 6 . Terminal Hacks 1 | . . . 1 . . . . Derelict Proto ID Bank 1 | . . . 1 . . . . Fabricator Hacks . | . . . . . . . . Repair Station Hacks 1 | . . . . . 1 . . Scan Component 1 | . . . . . 1 . . Recycling Unit Hacks 1 | . . . . . . 1 . Report Inventory 1 | . . . . . . 1 . Scanalyzer . | . . . . . . . . Garrison Access Hacks 1 | . . . . . . 1 . Unlock Access 1 | . . . . . . 1 . Unauthorized Hacks 4 | . 2 . . . 2 . . Terminals 4 | . 2 . . . 2 . . Assimilate 1 | . 1 . . . . . . Botnet 2 | . 1 . . . 1 . . Operators 1 | . . . . . 1 . . Fabricators . | . . . . . . . . Repair Stations . | . . . . . . . . Recycling Units . | . . . . . . . . Scanalyzers . | . . . . . . . . Garrison Access . | . . . . . . . . Data Cores Recovered . | . . . . . . . . Used . | . . . . . . . . Hacking Detections 6 | . 1 . . . 1 3 1 Full Trace Events 3 | . 1 . . . . 1 1 Feedback Events . | . . . . . . . . Feedback Blocked . | . . . . . . . . Robot Schematics Acquired . | . . . . . . . . Robots Built . | . . . . . . . . Authchips . | . . . . . . . . Time . | . . . . . . . . Total Robot Build Rating . | . . . . . . . . Part Schematics Acquired . | . . . . . . . . Parts Built . | . . . . . . . . Authchips . | . . . . . . . . Time . | . . . . . . . . Total Part Build Rating . | . . . . . . . . Parts Repaired . | . . . . . . . . Time . | . . . . . . . . Parts Recycled . | . . . . . . . . Recycled Matter . | . . . . . . . . Retrieved Matter . | . . . . . . . . Retrieved Components . | . . . . . . . . Parts Scanalyzed . | . . . . . . . . Part Schematics Acquired . | . . . . . . . . Parts Damaged . | . . . . . . . . Bothacking | -11 -10 -10 -10 -9 -8 -7 -7 ------------ Run | Yrd Mat Min Exi Min Mat Fac Gar Used RIF Installer . | . . . . . . . . Robots Hacked . | . . . . . . . . Non-combat . | . . . . . . . . Combat . | . . . . . . . . Robot Hacks Applied . | . . . . . . . . Relay Couplers Released . | . . . . . . . . Fabnet Peak Effective % . | . . . . . . . . Robots Rewired . | . . . . . . . . Allies Hacked . | . . . . . . . . Hacks Repelled . | . . . . . . . . Allies | -11 -10 -10 -10 -9 -8 -7 -7 -------- Run | Yrd Mat Min Exi Min Mat Fac Gar Total Allies 3 | . . 2 . 1 . . . Largest Group 2 | . . 2 . . 1 . . Highest-Rated Group 45 | . . 45 . . 31 . . Highest-Rated Ally 31 | . . 31 . . 31 . . Total Orders . | . . . . . . . . Ally Attacks 4 | . . . . . 4 . . Total Damage 42 | . . . . . 42 . . Kills 1 | . . . . . 1 . . Allies Corrupted . | . . . . . . . . Allies Melted . | . . . . . . . . Intel | -11 -10 -10 -10 -9 -8 -7 -7 ------- Run | Yrd Mat Min Exi Min Mat Fac Gar Robot Analysis Total . | . . . . . . . . Derelict Logs Recovered 1 | . . . . 1 . . . Drone Launches . | . . . . . . . . Drone Recoveries . | . . . . . . . . Exploration | -11 -10 -10 -10 -9 -8 -7 -7 ------------- Run | Yrd Mat Min Exi Min Mat Fac Gar Turns Passed 1368 | 46 148 55 106 117 296 479 121 Spaces Moved 2152 | 37 179 86 280 284 412 752 122 Core 257 | 2 . . . . . 175 80 Treads . | . . . . . . . . Legs . | . . . . . . . . Wheels 318 | 35 71 . . . . 170 42 Hover 146 | . . . . . . 146 . Flight 1431 | . 108 86 280 284 412 261 . Fastest Speed 34 | 50 40 37 37 37 34 40 50 Average Speed 50 | 88 59 38 37 37 48 57 65 Slowest Speed 200 | 100 90 40 37 37 200 90 150 Overloaded Moves . | . . . . . . . . Propulsion Burnouts . | . . . . . . . . Robots Hopped 16 | . 1 1 . 8 6 . . Cave-ins Triggered . | . . . . . . . . Exploration Rate (%) 33 | 4 31 21 62 68 35 19 29 Regions Visited 7 Branch Regions 3 Pre-discovered Areas 1 | . . . . 1 . . . Known Exits Taken 1 | . . . . . . 1 . Unknown Exits Taken 6 | 1 1 1 1 1 1 . . Scrap Searched 1 | . . . . 1 . . . Spaces Dug . | . . . . . . . . Terrain Destroyed 8 | . . . . . 7 1 . Melee . | . . . . . . . . Projectile 8 | . . . . . 7 1 . AOE . | . . . . . . . . Terrain Rammed . | . . . . . . . . Walls Destroyed . | . . . . . . . . Machines Disabled . | . . . . . . . . Actions | -11 -10 -10 -10 -9 -8 -7 -7 --------- Run | Yrd Mat Min Exi Min Mat Fac Gar Total 2336 | 47 200 101 281 287 482 782 156 Wait 66 | 2 . . 1 7 36 9 11 Move 2116 | 36 176 83 279 269 400 751 122 Hop 13 | . 1 1 . 6 5 . . Pick Up 19 | 3 3 3 . 2 8 . . Fast Attach 19 | 6 . 2 1 . 4 5 1 Attach 6 | . 1 . . 1 1 2 1 Detach 6 | . 2 . . . 1 1 2 Swap 10 | . 2 . . 1 5 2 . Drop 22 | . 5 3 . 1 11 1 1 Fire 33 | . 10 9 . . 11 3 . Melee 11 | . . . . . . 5 6 Ram 2 | . . . . . . 2 . Kick . | . . . . . . . . Crush . | . . . . . . . . Escape Stasis 12 | . . . . . . . 12 Rewire 1 | . . . . . . 1 . Trap . | . . . . . . . . Miscellaneous . | . . . . . . . . Route ------- -11/Scrapyard -10/Materials -10/Mines -10/Exiles -9/Mines -8/Materials -7/Factory -7/Garrison History --------- Turn | Location | Event 25 | -11/Scrapyard | Discovered new exit (range 15) 47 | -11/Scrapyard | Entered Materials 192 | -10/Materials | Discovered new exit (range 7) 195 | -10/Materials | Entered Mines 245 | -10/Mines | Deemed a non-threat by the Exiles lab entrance 245 | -10/Mines | Discovered new exit (range 5) 250 | -10/Mines | Entered Exiles 259 | -10/Exiles | Met 8R-AWN 266 | -10/Exiles | Met EX-HEX 277 | -10/Exiles | Met EX-BIN 283 | -10/Exiles | Aligned with FarCom system 284 | -10/Exiles | Given EX-Vault access code 292 | -10/Exiles | Opened EX-Vault 307 | -10/Exiles | Found Trap Reconfigurator 320 | -10/Exiles | Warned to stay clear of 0b10 Research branches 330 | -10/Exiles | Met EX-DEC 352 | -10/Exiles | Discovered new exit (range 12) 356 | -10/Exiles | Left Exiles lab with Trap Reconfigurator 356 | -10/Exiles | Entered Mines 372 | -9/Mines | Assembled infested the area 377 | -9/Mines | Assisted by a Guerilla fighting off Assembled 411 | -9/Mines | Core integrity fell below 50% 433 | -9/Mines | Found a hidden stash of uninstalled traps 466 | -9/Mines | Discovered new exit (range 8) 469 | -9/Mines | Received a Mining Laser from a helpful Derelict 473 | -9/Mines | Entered Materials 473 | -8/Materials | Accompanied by 1 ally 473 | -8/Materials | Evolved 4 slots: Propulsion x2, Utility x2 584 | -8/Materials | Lost 3 parts (1p2n) 740 | -8/Materials | Discovered new exit (range 13) 752 | -8/Materials | Build established: Mutant 769 | -8/Materials | Entered Factory 769 | -7/Factory | Evolved 2 slots: Power x1, Propulsion x1 1245 | -7/Factory | Identified exit to Garrison 1248 | -7/Factory | Entered Garrison 1262 | -7/Garrison | Triggered checkpoint 1296 | -7/Garrison | Triggered checkpoint 1305 | -7/Garrison | Core integrity fell below 50% 1331 | -7/Garrison | Lost 4 parts (1p1n2u) 1334 | -7/Garrison | Triggered checkpoint 1335 | -7/Garrison | Core integrity fell below 20% 1348 | -7/Garrison | Triggered checkpoint 1369 | -7/Garrison | Destroyed by G-47 Trooper with Particle Gun Last Messages --------------- 01284_ Field strength at 41. 01285_ Field strength at 27. 01286_ Field strength at 14. 01288_ Stasis field depleted. 01296_ Beams of light sweep through the air. An alarm sounds. 01298_ S-27 Virus destroyed. 01300_ Arm. Wheel destroyed. Garrison Door activated. 01304_ Critical hit (Burn: +37). 01312_ P-60 Hacker resets G-47 Trooper, system corruption cleaned. 01314_ Connecting with Garrison Terminal... 01314_ ALERT: Suspicious activity at Terminal G003. Transmitting hostile system tracking data. 01334_ Beams of light sweep through the air. An alarm sounds. 01341_ Extracted 143 matter. 01342_ Dropped Katana. 01343_ Acquired Katana. 01345_ Extracted 10 matter. 01357_ Critical hit (Burn: +37). 01363_ Extracted 10 matter. 01369_ Critical hit (Burn: +37). Map ----- +----------------------------------------------------+ | | | | | | | | | | | | | | | | | | | | | | | | | | | | | | | | | ?????????????????????????????????????????? | | ?????????????????????????????????????????? | | ?????????????????????????????????????????? | | ?????????????????????????????????????????? | | ?????????????????????????????????????????? | | ?????????????????????????????????????????? | | ??????????????????????#####??????????????? | | ??????????????????????#!!!#??????????????? | | ??????????????????????#! !#??????????????? | | ??????????????????????#! @#??????????????? | | ??????????????????????##g##??????????????? | | ???????????????????????#g#???????????????? | | ???????????????????????#gp???????????????? | | ???????????????????????# "p??????????????? | | ???????????????????????# "???????????????? | | ???????????????????????# #???????????????? | | ???????????????????????# #???????????????? | | ???????????????????????# #???????????????? | | ???????????????????????# #???????????????? | | ???????????????????????# ###?????????????? | | ???????????????????????# #?????????????? | | ?????????? Y?????????# #?????????????? | | ?????????# ?????????# #?????????????? | | ?????????# #?????????# ###?????????????? | | ?????????# #?????????#g#???????????????? | | ?????????# #?????????# #???????????????? | | ?????????# #?????????#C#???????????????? | | ?????????# #?????????# #???????????????? | | ?????????" #?????????# "???????????????? | | ?????????" #?????????# "???????????????? | | ?????????" #?????????# "???????????????? | | ?????????# #?????????# #???????????????? | | ?????????# #?????????# #???????????????? | | ?????????# #?????????# #???????????????? | +----------------------------------------------------+ Best States ------------- Heat Dissipation 34 Energy Generation 10 Energy Capacity 250 Matter Stores 300 Matter Capacity 300 Sight Range 16 Terrain Scan Density 10 Evasion (%) 63 Melee Accuracy 11 Item Schematics ----------------- None Robot Schematics ------------------ None Fabricated ------------ Nothing Alien Tech Used ----------------- None Achievements -------------- Slippery One Challenges ------------ None Game ------ Seed VampiricControlSlayer Manual? 0 Play Time 00:30:26 Cumulative 15.3 hours Start 2025.04.24 @ 10:54:44 End 2025.04.24 @ 11:26:56 Sessions 3 Manual Loads 0 Difficulty Rogue Special Mode None Game No. 19 Rogue 19 Adventurer 0 Explorer 0 Win Type - Total 0 Types 0/0/0/0/0/0/0/0/0 Lore% 12 Gallery% 24 Achievement% 24 Wizard Run 0 Options --------- Layout 0 ASCII 0 Keyboard 1 Movement Numpad Keybinds 0 Fullscreen 2 Font 18/SmallcapsGlow Map View 112x50 Zoom Use 0% Tactical HUD 1 Map Filters NONE Filters NONE Steam 1 RUN: fb4878ac-f2d8-40c0-b3de-a396dde5a9a7